Workbook

Sheet Υπολογιστής δανείου
B2: ΦΟΙΤΗΤΙΚΟ ΔΑΝΕΙΟ | G2: 50,000.00 € | L2: 4067300.00%
B3: ΥΠΟΛΟΓΙΣΤΗΣ
B5: Συνιστάται οι συνολικές μηνιαίες αποπληρωμές του φοιτητικού δανείου σας να μην υπερβαίνουν το 8% του ετήσιου μισθού σας για το πρώτο έτος.
E7: Η τρέχουσα συνδυασμένη μηνιαία πληρωμή είναι: | F7: =CollegeLoans[[#Totals],[Τρέχουσα μηνιαία πληρωμή]] -> 328.59 € | L7: Η συνδυασμένη προγραμματισμένη μηνιαία πληρωμή είναι: | M7: =CollegeLoans[[#Totals],[Προγραμματισμένη πληρωμή]] -> 328.59 €
E8: Ποσοστό του μηνιαίου εισοδήματος: | F8: =CollegeLoans[[#Totals],[Τρέχουσα μηνιαία πληρωμή]]/EstimatedMonthlySalary -> 7.89% | L8: Ποσοστό του μηνιαίου εισοδήματος: | M8: =CollegeLoans[[#Totals],[Προγραμματισμένη πληρωμή]]/EstimatedMonthlySalary -> 7.89%
C11: ΓΕΝΙΚΕΣ ΛΕΠΤΟΜΕΡΕΙΕΣ ΔΑΝΕΙΟΥ | G11: ΔΕΔΟΜΕΝΑ ΑΠΟΠΛΗΡΩΜΗΣ ΔΑΝΕΙΟΥ | J11: ΛΕΠΤΟΜΕΡΕΙΕΣ ΠΛΗΡΩΜΗΣ
C12: Αρ. δανείου | D12: Δανειστής | E12: Ποσό δανείου | F12: Ετήσιο επιτόκιο | G12: Ημερομηνία έναρξης | H12: Διάρκεια (Έτη) | I12: Ημερομηνία λήξης | J12: Τρέχουσα μηνιαία πληρωμή | K12: Σύνολο τόκων | L12: Προγραμματισμένη πληρωμή | M12: Ετήσια πληρωμή
C13: 10998M88 | D13: Δανειστής 1 | E13: 10,000.00 € | F13: 5.00% | G13: 4063400.00% | H13: 10 | I13: =IF(AND(CollegeLoans[[#This Row],[Ημερομηνία έναρξης]]>0,CollegeLoans[[#This Row],[Διάρκεια (Έτη)]]>0),EDATE(CollegeLoans[[#This Row],[Ημερομηνία έναρξης]],CollegeLoans[[#This Row],[Διάρκεια (Έτη)]]*12),"") -> 4428700.00% | J13: =IF(AND(LoanStartLToday,COUNT(CollegeLoans[[#This Row],[Ποσό δανείου]:[Διάρκεια (Έτη)]])=4,CollegeLoans[[#This Row],[Ημερομηνία έναρξης]]<TODAY()),PMT(CollegeLoans[[#This Row],[Ετήσιο επιτόκιο]]/12,CollegeLoans[[#This Row],[Διάρκεια (Έτη)]]*12,-CollegeLoans[[#This Row],[Ποσό δανείου]],0,0),"") -> 106.07 € | K13: =IFERROR((CollegeLoans[[#This Row],[Προγραμματισμένη πληρωμή]]*(CollegeLoans[[#This Row],[Διάρκεια (Έτη)]]*12))-CollegeLoans[[#This Row],[Ποσό δανείου]],"") -> 2,727.86 € | L13: =IF(COUNTA(CollegeLoans[[#This Row],[Ποσό δανείου]:[Διάρκεια (Έτη)]])<>4,"",PMT(CollegeLoans[[#This Row],[Ετήσιο επιτόκιο]]/12,CollegeLoans[[#This Row],[Διάρκεια (Έτη)]]*12,-CollegeLoans[[#This Row],[Ποσό δανείου]],0,0)) -> 106.07 € | M13: =IFERROR(CollegeLoans[[#This Row],[Προγραμματισμένη πληρωμή]]*12,"") -> 1,272.79 €
C14: 20987N87 | D14: Δανειστής 2 | E14: 8,000.00 € | F14: 5.00% | G14: 4066400.00% | H14: 10 | I14: =IF(AND(CollegeLoans[[#This Row],[Ημερομηνία έναρξης]]>0,CollegeLoans[[#This Row],[Διάρκεια (Έτη)]]>0),EDATE(CollegeLoans[[#This Row],[Ημερομηνία έναρξης]],CollegeLoans[[#This Row],[Διάρκεια (Έτη)]]*12),"") -> 4431700.00% | J14: =IF(AND(LoanStartLToday,COUNT(CollegeLoans[[#This Row],[Ποσό δανείου]:[Διάρκεια (Έτη)]])=4,CollegeLoans[[#This Row],[Ημερομηνία έναρξης]]<TODAY()),PMT(CollegeLoans[[#This Row],[Ετήσιο επιτόκιο]]/12,CollegeLoans[[#This Row],[Διάρκεια (Έτη)]]*12,-CollegeLoans[[#This Row],[Ποσό δανείου]],0,0),"") -> 84.85 € | K14: =IFERROR((CollegeLoans[[#This Row],[Προγραμματισμένη πληρωμή]]*(CollegeLoans[[#This Row],[Διάρκεια (Έτη)]]*12))-CollegeLoans[[#This Row],[Ποσό δανείου]],"") -> 2,182.29 € | L14: =IF(COUNTA(CollegeLoans[[#This Row],[Ποσό δανείου]:[Διάρκεια (Έτη)]])<>4,"",PMT(CollegeLoans[[#This Row],[Ετήσιο επιτόκιο]]/12,CollegeLoans[[#This Row],[Διάρκεια (Έτη)]]*12,-CollegeLoans[[#This Row],[Ποσό δανείου]],0,0)) -> 84.85 € | M14: =IFERROR(CollegeLoans[[#This Row],[Προγραμματισμένη πληρωμή]]*12,"") -> 1,018.23 €
C15: 36785LM | D15: Δανειστής 3 | E15: 6,000.00 € | F15: 4.50% | G15: 4096900.00% | H15: 10 | I15: =IF(AND(CollegeLoans[[#This Row],[Ημερομηνία έναρξης]]>0,CollegeLoans[[#This Row],[Διάρκεια (Έτη)]]>0),EDATE(CollegeLoans[[#This Row],[Ημερομηνία έναρξης]],CollegeLoans[[#This Row],[Διάρκεια (Έτη)]]*12),"") -> 4462100.00% | J15: =IF(AND(LoanStartLToday,COUNT(CollegeLoans[[#This Row],[Ποσό δανείου]:[Διάρκεια (Έτη)]])=4,CollegeLoans[[#This Row],[Ημερομηνία έναρξης]]<TODAY()),PMT(CollegeLoans[[#This Row],[Ετήσιο επιτόκιο]]/12,CollegeLoans[[#This Row],[Διάρκεια (Έτη)]]*12,-CollegeLoans[[#This Row],[Ποσό δανείου]],0,0),"") -> 62.18 € | K15: =IFERROR((CollegeLoans[[#This Row],[Προγραμματισμένη πληρωμή]]*(CollegeLoans[[#This Row],[Διάρκεια (Έτη)]]*12))-CollegeLoans[[#This Row],[Ποσό δανείου]],"") -> 1,461.97 € | L15: =IF(COUNTA(CollegeLoans[[#This Row],[Ποσό δανείου]:[Διάρκεια (Έτη)]])<>4,"",PMT(CollegeLoans[[#This Row],[Ετήσιο επιτόκιο]]/12,CollegeLoans[[#This Row],[Διάρκεια (Έτη)]]*12,-CollegeLoans[[#This Row],[Ποσό δανείου]],0,0)) -> 62.18 € | M15: =IFERROR(CollegeLoans[[#This Row],[Προγραμματισμένη πληρωμή]]*12,"") -> 746.20 €
C16: 765R43 | D16: Δανειστής 4 | E16: 4,000.00 € | F16: 5.00% | G16: 4103000.00% | H16: 5 | I16: =IF(AND(CollegeLoans[[#This Row],[Ημερομηνία έναρξης]]>0,CollegeLoans[[#This Row],[Διάρκεια (Έτη)]]>0),EDATE(CollegeLoans[[#This Row],[Ημερομηνία έναρξης]],CollegeLoans[[#This Row],[Διάρκεια (Έτη)]]*12),"") -> 4285600.00% | J16: =IF(AND(LoanStartLToday,COUNT(CollegeLoans[[#This Row],[Ποσό δανείου]:[Διάρκεια (Έτη)]])=4,CollegeLoans[[#This Row],[Ημερομηνία έναρξης]]<TODAY()),PMT(CollegeLoans[[#This Row],[Ετήσιο επιτόκιο]]/12,CollegeLoans[[#This Row],[Διάρκεια (Έτη)]]*12,-CollegeLoans[[#This Row],[Ποσό δανείου]],0,0),"") -> 75.48 € | K16: =IFERROR((CollegeLoans[[#This Row],[Προγραμματισμένη πληρωμή]]*(CollegeLoans[[#This Row],[Διάρκεια (Έτη)]]*12))-CollegeLoans[[#This Row],[Ποσό δανείου]],"") -> 529.10 € | L16: =IF(COUNTA(CollegeLoans[[#This Row],[Ποσό δανείου]:[Διάρκεια (Έτη)]])<>4,"",PMT(CollegeLoans[[#This Row],[Ετήσιο επιτόκιο]]/12,CollegeLoans[[#This Row],[Διάρκεια (Έτη)]]*12,-CollegeLoans[[#This Row],[Ποσό δανείου]],0,0)) -> 75.48 € | M16: =IFERROR(CollegeLoans[[#This Row],[Προγραμματισμένη πληρωμή]]*12,"") -> 905.82 €
C17: Σύνολα | E17: =SUBTOTAL(109,CollegeLoans[Ποσό δανείου]) -> 28,000.00 € | J17: =SUBTOTAL(109,CollegeLoans[Τρέχουσα μηνιαία πληρωμή]) -> 328.59 € | K17: =SUBTOTAL(109,CollegeLoans[Σύνολο τόκων]) -> 6,901.21 € | L17: =SUBTOTAL(109,CollegeLoans[Προγραμματισμένη πληρωμή]) -> 328.59 € | M17: =SUBTOTAL(109,CollegeLoans[Ετήσια πληρωμή]) -> 3,943.03 €
C18: Μέσοι όροι | E18: =AVERAGE(CollegeLoans[Ποσό δανείου]) -> 7,000.00 € | F18: =AVERAGE(CollegeLoans[Ετήσιο επιτόκιο]) -> 4.88% | K18: =AVERAGE(CollegeLoans[Σύνολο τόκων]) -> 1,725.30 € | M18: =AVERAGE(CollegeLoans[Ετήσια πληρωμή]) -> 985.76 €
K20: Συνολική ενοποιημένη αποπληρωμή δανείων: | M20: =CollegeLoans[[#Totals],[Ποσό δανείου]]+CollegeLoans[[#Totals],[Σύνολο τόκων]] -> 34,901.21 €
K22: Εκτιμώμενο μηνιαίο εισόδημα μετά την αποφοίτηση: | M22: =(EstimatedAnnualSalary/12) -> 4,166.67 €
